fUSD/lending_fUSD_20241225
["ID","MTS","AMOUNT","RATE_DAILY","PERIOD"]
[346578123,1735109934512,500.0,9.798e-05,2]
[346578124,1735109935871,5276.42,9.798e-05,2]
[346578125,1735109936911,1111.03,9.798e-05,2]
[346578126,1735109938817,500.0,9.798e-05,2]
[346578127,1735109939155,500.0,9.798e-05,2]
[346578128,1735109940559,2165.06,9.798e-05,2]
[346578129,1735109942791,1997.05,9.798e-05,2]
[346578130,1735109943833,989.04,9.798e-05,2]
[346578131,1735109944913,2386.18,9.798e-05,2]
[346578132,1735109945041,500.0,9.798e-05,2]
[346578133,1735109945576,500.0,9.798e-05,2]
[346578134,1735109947057,2598.28,9.797e-05,2]
[346578135,1735109949394,1320.66,9.798e-05,2]
[346578136,1735109950405,500.0,9.798e-05,2]
[346578137,1735109951233,513.9,9.798e-05,2]
[346578138,1735109952281,500.0,9.798e-05,2]
[346578139,1735109952491,2266.67,9.798e-05,2]
[346578140,1735109952867,500.0,9.798e-05,2]
[346578141,1735109953437,500.0,9.798e-05,2]
[346578142,1735109955646,1306.35,9.797e-05,2]
[346578143,1735109957691,1417.92,9.797e-05,2]
[346578144,1735109957821,500.0,9.798e-05,2]
[346578145,1735109958683,2181.36,9.798e-05,2]
[346578146,1735109959770,3205.05,9.798e-05,2]
[346578147,1735109962462,3266.97,9.798e-05,2]
[346578148,1735109963181,866.4,9.798e-05,2]
[346578149,1735109965047,1436.97,9.798e-05,2]
[346578150,1735109965998,4072.59,9.798e-05,2]
[346578151,1735109966354,4928.2,9.797e-05,2]
[346578152,1735109968332,3039.75,9.798e-05,2]
[346578153,1735109968674,2687.65,9.797e-05,2]
[346578154,1735109970402,500.0,9.798e-05,2]
[346578155,1735109971147,500.0,9.798e-05,2]
[346578156,1735109973195,2588.35943284,9.798e-05,2]
[346578210,1735110439209,250.0,9.509e-05,2]
[346578550,1735110632290,-151.1,9.61e-05,2]
[346578551,1735110632299,-441.39,9.61e-05,2]
[346578552,1735110632308,-562.01810787,9.796e-05,2]
[346578553,1735110632332,-437.98189213,9.796e-05,2]
[346578554,1735110632342,-564.81,9.796e-05,2]
[346578555,1735110632351,-2941.19964446,9.796e-05,2]
[346578556,1735110632362,-992.74370002,9.796e-05,2]
[346578557,1735110632399,-31.13665552,9.796e-05,2]
[346578558,1735110632408,-881.08,9.796e-05,2]
[346578559,1735110632417,-11624.19998455,9.796e-05,2]
[346578560,1735110632585,-1211.3,9.796e-05,2]
[346578578,1735110638134,-3557.82001545,9.796e-05,2]
[346578579,1735110638143,-1534.10819543,9.796e-05,2]
[346578580,1735110638155,-1222.78180457,9.796e-05,2]
[346578581,1735110638164,-194.96966413,9.796e-05,2]
[346578582,1735110638175,-914.3979275,9.796e-05,2]
[346578583,1735110638287,-5609.51240837,9.796e-05,2]
[346578584,1735110638297,-500.0,9.796e-05,2]
[346578585,1735110638306,-1910.15,9.796e-05,2]
[346578586,1735110638315,-2120.26,9.796e-05,2]
[346578587,1735110638324,-5566.28,9.796e-05,2]
[346578588,1735110638334,-2051.85,9.796e-05,2]
[346578589,1735110638343,-500.0,9.796e-05,2]
[346578590,1735110638352,-5793.96032551,9.797e-05,2]
[346578591,1735110638415,-2282.49967449,9.797e-05,2]
[346578592,1735110638425,-10188.23,9.797e-05,2]
[346578593,1735110638435,-2631.84511317,9.797e-05,2]
[346578594,1735110638446,-298.09488683,9.797e-05,2]
[346578595,1735110638455,-500.0,9.797e-05,2]
[346578596,1735110638464,-500.0,9.797e-05,2]
[346578597,1735110638473,-1387.17,9.797e-05,2]
[346578598,1735110638482,-2407.37,9.797e-05,2]
[346578599,1735110638491,-1163.95249437,9.797e-05,2]
[346578600,1735110638503,-541.89750563,9.797e-05,2]
[346578601,1735110638512,-3699.01,9.797e-05,2]
[346578602,1735110638521,-9710.16,9.797e-05,2]
[346578603,1735110638530,-3902.9,9.797e-05,2]
[346578604,1735110638539,-4516.14,9.797e-05,2]
[346578605,1735110638548,-1358.84,9.797e-05,2]
[346578606,1735110638557,-2205.02140182,9.797e-05,2]
[346578607,1735110640320,-500.0,9.796e-05,2]
[346578608,1735110640330,-705.41,9.796e-05,2]
[346578609,1735110640339,-2517.83859818,9.797e-05,2]
[346578610,1735110640349,-3270.52,9.797e-05,2]
[346578611,1735110640359,-1947.81087178,9.797e-05,2]
[346578612,1735110645894,-542.20912822,9.797e-05,2]
[346578613,1735110645904,-2992.81,9.797e-05,2]
[346578614,1735110645913,-3091.46,9.797e-05,2]
[346578616,1735110645922,-2090.47,9.797e-05,2]
[346578618,1735110645932,-1251.92,9.797e-05,2]
[346578619,1735110645941,-4416.92,9.797e-05,2]
[346578621,1735110645951,-154.32729,9.797e-05,2]
[346578622,1735110645960,-8808.07,9.797e-05,2]
[346578623,1735110645969,-163.623565,9.797e-05,2]
[346578624,1735110645979,-2240.02478,9.797e-05,2]
[346578625,1735110645988,-2575.66,9.797e-05,2]
[346578627,1735110646002,-2254.02781,9.797e-05,2]
[346578629,1735110646011,-11172.86,9.797e-05,2]
[346578631,1735110646021,-1103.77,9.797e-05,2]
[346578633,1735110646030,-14852.92,9.797e-05,2]
[346578635,1735110646039,-719.0632035,9.797e-05,2]
[346578637,1735110646051,-1925.13775293,9.797e-05,2]
[346578644,1735110646114,-2918.182826,9.797e-05,2]
[346578647,1735110646135,-438.7954991,9.797e-05,2]
[346578649,1735110646147,-680.92299068,9.797e-05,2]
[346578656,1735110647234,-346.250014,9.796e-05,2]
[346578657,1735110647245,-504.119986,9.796e-05,2]
[346578658,1735110647255,-58539.72772779,9.797e-05,2]
[346578659,1735110647264,-1613.21,9.797e-05,2]
[346578660,1735110647274,-1534.04,9.797e-05,2]
[346578661,1735110647283,-1525.86,9.797e-05,2]
[346578662,1735110647293,-2164.33,9.797e-05,2]
[346578663,1735110647302,-2576.12,9.797e-05,2]
[346578664,1735110647311,-4625.59,9.797e-05,2]
[346578665,1735110647321,-1049.98,9.797e-05,2]
[346578666,1735110647330,-3734.05,9.797e-05,2]
[346578667,1735110647339,-2467.52,9.797e-05,2]
[346578668,1735110647349,-3069.52,9.797e-05,2]
[346578669,1735110647358,-500.0,9.797e-05,2]
[346578670,1735110647367,-2941.99,9.797e-05,2]
[346578671,1735110647377,-3229.15,9.797e-05,2]
[346578672,1735110647387,-5713.99,9.797e-05,2]
[346578673,1735110647396,-2328.05062784,9.797e-05,2]
[346578674,1735110647435,-1813.7999,9.797e-05,2]
[346578675,1735110647486,-1354.11947216,9.797e-05,2]
[346578676,1735110647495,-1383.43437378,9.797e-05,2]
[346578677,1735110648445,-778.01562622,9.797e-05,2]
[346578678,1735110648455,-2739.03,9.797e-05,2]
[346578679,1735110648464,-6798.62,9.797e-05,2]
[346578680,1735110648474,-2697.81,9.797e-05,2]
[346578681,1735110648484,-14705.34,9.797e-05,2]
[346578682,1735110648494,-12601.34270765,9.797e-05,2]
[346578683,1735110648506,-2635.20776727,9.797e-05,2]
[346578684,1735110648550,-40872.94952508,9.797e-05,2]
[346578685,1735110648560,-8504.61,9.797e-05,2]
[346578686,1735110648569,-2935.62,9.797e-05,2]
[346578687,1735110648578,-1923.36,9.797e-05,2]
[346578688,1735110648588,-9219.56157157,9.797e-05,2]
[346578689,1735110648616,-885.83842843,9.797e-05,2]
[346578690,1735110648625,-1747.51,9.797e-05,2]
[346578691,1735110648636,-2143.28457157,9.797e-05,2]
[346578692,1735110648647,-1256.74719578,9.797e-05,2]
[346578693,1735110648675,-196.45823265,9.797e-05,2]
[346578694,1735110648684,-5653.83,9.797e-05,2]
[346578695,1735110648694,-1429.59,9.797e-05,2]
[346578696,1735110648703,-13798.58,9.797e-05,2]
[346578697,1735110648713,-5223.36,9.797e-05,2]
[346578698,1735110648723,-1693.93,9.797e-05,2]
[346578699,1735110648732,-1916.29,9.797e-05,2]
[346578700,1735110648741,-6280.28,9.797e-05,2]
[346578701,1735110648750,-2962.55380595,9.797e-05,2]
[346578702,1735110648761,-47.32619405,9.797e-05,2]
[346578703,1735110648771,-850.04,9.797e-05,2]
[346578704,1735110648781,-10873.11,9.797e-05,2]
[346578705,1735110648792,-1958.68,9.797e-05,2]
[346578706,1735110648802,-5056.57,9.797e-05,2]
[346578707,1735110648812,-1085.65329455,9.797e-05,2]
[346579019,1735110698893,1000.0,9.495e-05,2]
[346579020,1735110897410,829.37,9.505e-05,2]
[346579021,1735110973213,1935.0,9.604e-05,2]
[346579025,1735111057911,151.1,9.498e-05,2]
[346579028,1735111097675,250.0,9.498e-05,2]
[346579029,1735111210535,256.46,9.568e-05,2]
[346579030,1735111239771,480.96,8.219e-05,2]
[346579032,1735111361551,250.0,9.512e-05,2]
[346579033,1735111459934,19323.62,9.538e-05,2]
[346579037,1735111503268,300.0,9.794e-05,2]
[346579038,1735111560221,250.0,9.527e-05,2]
[346579040,1735111622247,300.0,9.794e-05,2]
[346579079,1735111699761,1578.59,9.794e-05,2]
[346579080,1735111706806,1000.0,9.423e-05,2]
[346579081,1735111713355,71.41,9.794e-05,2]
[346579501,1735111832310,-300.0,9.793e-05,2]
[346579503,1735111832320,-469.87,9.794e-05,2]
[346579505,1735111832329,-1503.54,9.794e-05,2]
[346579506,1735111832339,-3799.87,9.794e-05,2]
[346579507,1735111832348,-1027.61,9.794e-05,2]
[346579508,1735111832358,-1541.55,9.794e-05,2]
[346579509,1735111832368,-500.0,9.794e-05,2]
[346579510,1735111832378,-844.37,9.794e-05,2]
[346579511,1735111832387,-3891.41,9.794e-05,2]
[346579512,1735111832397,-17302.77,9.794e-05,2]
[346579513,1735111832410,-2071.39,9.794e-05,2]
[346579514,1735111832419,-2642.02,9.794e-05,2]
[346579515,1735111832428,-1670.04816245,9.794e-05,2]
[346579516,1735111832438,-609.05888397,9.794e-05,2]
[346579517,1735111832486,-1976.34111603,9.794e-05,2]
[346579518,1735111832496,-2424.68093204,9.794e-05,2]
[346579519,1735111832526,-1409.25229469,9.794e-05,2]
[346579520,1735111832537,-320.29041264,9.794e-05,2]
[346579521,1735111832690,-809.10534744,9.794e-05,2]
[346579522,1735111832702,-1152.64524711,9.794e-05,2]
[346579523,1735111832714,-322.94576608,9.794e-05,2]
[346579524,1735111832723,-648.79042264,9.794e-05,2]
[346579525,1735111832734,-311.34125143,9.794e-05,2]
[346579526,1735111838266,-967.67659597,9.794e-05,2]
[346579527,1735111838278,-2553.22172996,9.794e-05,2]
[346579528,1735111838287,-1830.56,9.794e-05,2]
[346579529,1735111838297,-2813.3,9.794e-05,2]
[346579530,1735111838306,-5334.36,9.794e-05,2]
[346579531,1735111838315,-1674.7,9.794e-05,2]
[346579532,1735111838324,-533.8,9.794e-05,2]
[346579533,1735111838334,-500.0,9.794e-05,2]
[346579534,1735111838343,-500.0,9.794e-05,2]
[346579535,1735111838354,-644.42,9.794e-05,2]
[346579536,1735111838363,-500.0,9.794e-05,2]
[346579537,1735111838372,-13223.64,9.794e-05,2]
[346579538,1735111838382,-500.0,9.794e-05,2]
[346579539,1735111838391,-641.724129,9.794e-05,2]
[346579540,1735111838401,-2031.92,9.794e-05,2]
[346579541,1735111838413,-991.11,9.794e-05,2]
[346579542,1735111838423,-814.94,9.794e-05,2]
[346579543,1735111838432,-500.0,9.794e-05,2]
[346579544,1735111838440,-1836.45,9.794e-05,2]
[346579545,1735111838451,-500.0,9.794e-05,2]
[346579546,1735111838460,-500.0,9.794e-05,2]
[346579547,1735111838470,-1000.0,9.795e-05,2]
[346579548,1735111838479,-676.02,9.795e-05,2]
[346579549,1735111838490,-500.0,9.795e-05,2]
[346579550,1735111838500,-1293.5,9.795e-05,2]
[346579551,1735111838509,-927.07,9.795e-05,2]
[346579552,1735111838519,-500.0,9.795e-05,2]
[346579569,1735111838750,-500.0,9.795e-05,2]
[346579572,1735111838760,-857.27,9.795e-05,2]
[346579575,1735111838769,-2046.75,9.795e-05,2]
[346579578,1735111838778,-1341.6,9.795e-05,2]
[346579581,1735111838788,-1198.92,9.795e-05,2]
[346579584,1735111838797,-1203.06,9.795e-05,2]
[346579587,1735111838806,-993.87,9.795e-05,2]
[346579591,1735111838816,-534.28,9.795e-05,2]
[346579594,1735111838824,-971.91,9.795e-05,2]
[346579596,1735111838835,-500.0,9.795e-05,2]
[346579598,1735111838844,-598.07,9.795e-05,2]
[346579600,1735111838854,-785.48,9.795e-05,2]
[346579602,1735111838863,-500.0,9.795e-05,2]
[346579603,1735111838872,-500.0,9.795e-05,2]
[346579605,1735111838881,-1162.28,9.795e-05,2]
[346579607,1735111838890,-500.0,9.795e-05,2]
[346579609,1735111838899,-606.12,9.795e-05,2]
[346579611,1735111838909,-500.0,9.795e-05,2]
[346579614,1735111838918,-1367.46,9.795e-05,2]
[346579616,1735111838927,-1625.14,9.795e-05,2]
[346579617,1735111838936,-742.44,9.795e-05,2]
[346579619,1735111838946,-500.0,9.795e-05,2]
[346579621,1735111838955,-1473.32,9.795e-05,2]
[346579623,1735111838964,-1547.68,9.795e-05,2]
[346579625,1735111838974,-161.603888,9.795e-05,2]
[346579627,1735111838983,-154.260917,9.795e-05,2]
[346579629,1735111838992,-606.63,9.795e-05,2]
[346579631,1735111839001,-2680.404525,9.795e-05,2]
[346579633,1735111839010,-322.39266179,9.795e-05,2]
[346579635,1735111839020,-500.0,9.795e-05,2]
[346579637,1735111839029,-2689.127703,9.795e-05,2]
[346579639,1735111839039,-500.0,9.795e-05,2]
[346579641,1735111839048,-500.0,9.795e-05,2]
[346579643,1735111839057,-876.87,9.795e-05,2]
[346579645,1735111839066,-500.0,9.795e-05,2]
[346579647,1735111839075,-654.79,9.795e-05,2]
[346579649,1735111839085,-500.0,9.795e-05,2]
[346579651,1735111839094,-500.0,9.795e-05,2]
[346579653,1735111839105,-514.14,9.795e-05,2]
[346579655,1735111839114,-500.0,9.795e-05,2]
[346579657,1735111839126,-601.12,9.795e-05,2]
[346579659,1735111839136,-2087.15,9.795e-05,2]
[346579661,1735111839145,-1080.39,9.795e-05,2]
[346579663,1735111839154,-500.0,9.795e-05,2]
[346579665,1735111839163,-1826.41,9.795e-05,2]
[346579666,1735111839172,-1427.56,9.795e-05,2]
[346579667,1735111839182,-787.48,9.795e-05,2]
[346579668,1735111839191,-932.5,9.795e-05,2]
[346579669,1735111839202,-2213.94,9.795e-05,2]
[346579670,1735111839210,-2234.21,9.795e-05,2]
[346579671,1735111839220,-1079.81,9.795e-05,2]
[346579672,1735111839229,-709.14,9.795e-05,2]
[346579673,1735111839238,-1370.14,9.795e-05,2]
[346579674,1735111839248,-500.0,9.795e-05,2]
[346579675,1735111839257,-571.15,9.795e-05,2]
[346579676,1735111839266,-500.0,9.795e-05,2]
[346579677,1735111839275,-3445.65,9.795e-05,2]
[346579678,1735111839285,-500.0,9.795e-05,2]
[346579679,1735111839294,-500.0,9.795e-05,2]
[346579680,1735111839303,-2290.72,9.795e-05,2]
[346579681,1735111839313,-535.1,9.795e-05,2]
[346579682,1735111839322,-500.0,9.795e-05,2]
[346579683,1735111839331,-1425.11,9.795e-05,2]
[346579684,1735111839341,-10945.14,9.795e-05,2]
[346579685,1735111839350,-2103.92,9.795e-05,2]
[346579686,1735111839359,-500.0,9.795e-05,2]
[346579687,1735111839368,-1062.01,9.795e-05,2]
[346579688,1735111839378,-2096.22,9.795e-05,2]
[346579689,1735111839387,-500.0,9.795e-05,2]
[346579690,1735111839396,-716.16,9.795e-05,2]
[346579691,1735111839405,-1353.02,9.795e-05,2]
[346579692,1735111839419,-791.19,9.795e-05,2]
[346579693,1735111839428,-500.0,9.795e-05,2]
[346579694,1735111839437,-2949.28,9.795e-05,2]
[346579695,1735111839447,-2524.15,9.795e-05,2]
[346579696,1735111839456,-1277.25,9.795e-05,2]
[346579697,1735111839468,-500.0,9.795e-05,2]
[346579698,1735111839478,-1158.6,9.795e-05,2]
[346579699,1735111839488,-1818.85,9.795e-05,2]
[346579700,1735111839498,-1199.76,9.795e-05,2]
[346579701,1735111839507,-1327.32,9.795e-05,2]
[346579702,1735111839517,-500.0,9.795e-05,2]
[346579703,1735111839526,-4582.65,9.795e-05,2]
[346579704,1735111839535,-1913.84,9.795e-05,2]
[346579705,1735111839544,-1315.3,9.795e-05,2]
[346579706,1735111839553,-2468.34,9.795e-05,2]
[346579707,1735111839563,-1192.05,9.795e-05,2]
[346579708,1735111839572,-2962.65,9.795e-05,2]
[346579709,1735111839582,-1071.99,9.795e-05,2]
[346579710,1735111839591,-2172.23,9.795e-05,2]
[346579711,1735111839600,-4232.88,9.795e-05,2]
[346579712,1735111839609,-500.0,9.795e-05,2]
[346579713,1735111839619,-2881.29,9.795e-05,2]
[346579714,1735111839628,-1195.93,9.795e-05,2]
[346579715,1735111839637,-14480.28,9.795e-05,2]
[346579716,1735111839646,-1837.11,9.795e-05,2]
[346579717,1735111839655,-2195.77,9.795e-05,2]
[346579718,1735111839665,-3938.56,9.795e-05,2]
[346579719,1735111839674,-1745.01,9.795e-05,2]
[346579720,1735111839684,-2518.58,9.795e-05,2]
[346579721,1735111839693,-22572.22,9.795e-05,2]
[346579722,1735111839703,-4407.75,9.795e-05,2]
[346579723,1735111839712,-1548.18,9.795e-05,2]
[346579724,1735111839721,-3969.3,9.795e-05,2]
[346579725,1735111839730,-3013.67,9.795e-05,2]
[346579726,1735111839739,-500.0,9.795e-05,2]
[346579727,1735111839749,-2087.75,9.795e-05,2]
[346579728,1735111839758,-7621.87,9.795e-05,2]
[346579729,1735111839768,-5115.23,9.795e-05,2]
[346579730,1735111839777,-1472.77,9.795e-05,2]
[346579731,1735111839787,-746.19,9.795e-05,2]
[346579732,1735111839796,-5475.91,9.795e-05,2]
[346579733,1735111839806,-506.64957533,9.795e-05,2]
[346579734,1735111839815,-5266.97,9.795e-05,2]
[346579735,1735111839824,-4356.69,9.795e-05,2]
[346579736,1735111839833,-1934.4,9.795e-05,2]
[346579737,1735111839842,-500.0,9.795e-05,2]
[346579738,1735111839851,-2624.9,9.795e-05,2]
[346579739,1735111839860,-1936.72,9.795e-05,2]
[346579740,1735111839869,-14092.62,9.795e-05,2]
[346579741,1735111839879,-1000.42,9.795e-05,2]
[346579742,1735111839888,-17389.71549694,9.795e-05,2]
[346579743,1735111839908,-814.06152128,9.795e-05,2]
[346579744,1735111839919,-554.67298178,9.795e-05,2]
[346579745,1735111839928,-484.91601915,9.795e-05,2]
[346579746,1735111839940,-15.08398085,9.795e-05,2]
[346579747,1735111839949,-1928.92,9.795e-05,2]
[346579748,1735111839958,-3446.64,9.795e-05,2]
[346579749,1735111839967,-500.0,9.795e-05,2]
[346579750,1735111839976,-1370.03,9.795e-05,2]
[346579751,1735111839986,-500.0,9.795e-05,2]
[346579752,1735111839995,-4560.1,9.795e-05,2]
[346579753,1735111840005,-2095.69,9.795e-05,2]
[346579754,1735111840015,-13489.77,9.795e-05,2]
[346579755,1735111840024,-611.78,9.795e-05,2]
[346579756,1735111840033,-1623.35,9.795e-05,2]
[346579757,1735111840042,-2310.72,9.795e-05,2]
[346579758,1735111840052,-500.0,9.795e-05,2]
[346579759,1735111840061,-595.61522963,9.795e-05,2]
[346579760,1735111840130,-3832.10182229,9.795e-05,2]
[346579761,1735111840142,-1590.89294808,9.795e-05,2]
[346579762,1735111840151,-5530.29344902,9.795e-05,2]
[346579763,1735111840179,-2209.64655098,9.795e-05,2]
[346579764,1735111840188,-500.0,9.795e-05,2]
[346579765,1735111840197,-6632.02,9.795e-05,2]
[346579766,1735111840208,-3158.01,9.795e-05,2]
[346579767,1735111840218,-500.0,9.795e-05,2]
[346579768,1735111840227,-4845.88,9.795e-05,2]
[346579769,1735111840237,-4056.0,9.795e-05,2]
[346579770,1735111840246,-1822.27,9.795e-05,2]
[346579772,1735111840255,-500.0,9.796e-05,2]
[346579775,1735111840265,-523.39,9.796e-05,2]
[346579778,1735111840274,-722.33,9.796e-05,2]
[346579780,1735111840284,-500.0,9.796e-05,2]
[346579782,1735111840294,-500.0,9.796e-05,2]
[346579784,1735111840303,-500.0,9.796e-05,2]
[346579786,1735111840312,-500.0,9.796e-05,2]
[346579787,1735111840322,-551.68,9.796e-05,2]
[346579788,1735111840331,-707.19,9.796e-05,2]
[346579789,1735111840340,-352.74398157,9.796e-05,2]
[346579790,1735111840350,-500.0,9.796e-05,2]
[346579791,1735111840360,-500.0,9.796e-05,2]
[346579792,1735111840370,-500.0,9.796e-05,2]
[346579793,1735111840379,-500.0,9.796e-05,2]
[346579794,1735111840389,-500.0,9.796e-05,2]
[346579795,1735111840399,-500.0,9.796e-05,2]
[346579796,1735111840411,-500.0,9.796e-05,2]
[346579797,1735111840421,-598.87,9.796e-05,2]
[346579798,1735111840430,-566.81,9.796e-05,2]
[346579799,1735111840439,-509.52012137,9.796e-05,2]
[346579800,1735111840449,-500.0,9.796e-05,2]
[346579801,1735111840459,-518.5,9.796e-05,2]
[346579802,1735111840468,-615.87,9.796e-05,2]
[346579803,1735111840478,-500.0,9.796e-05,2]
[346579804,1735111840491,-500.0,9.796e-05,2]
[346579805,1735111840502,-724.8,9.796e-05,2]
[346579806,1735111840511,-806.06,9.796e-05,2]
[346579807,1735111840520,-500.0,9.796e-05,2]
[346579808,1735111840529,-263.62633288,9.796e-05,2]
[346579809,1735111840539,-507.2514103,9.796e-05,2]
[346579810,1735111840548,-739.28,9.796e-05,2]
[346579811,1735111840558,-500.0,9.796e-05,2]
[346579812,1735111840567,-500.0,9.796e-05,2]
[346579813,1735111840577,-500.0,9.796e-05,2]
[346579814,1735111840586,-500.0,9.796e-05,2]
[346579815,1735111840595,-500.0,9.796e-05,2]
[346579816,1735111840607,-994.09,9.796e-05,2]
[346579817,1735111840618,-500.0,9.796e-05,2]
[346579818,1735111840627,-584.6,9.796e-05,2]
[346579819,1735111840636,-571.29,9.796e-05,2]
[346579820,1735111840649,-536.37645136,9.796e-05,2]
[346579821,1735111840663,-500.0,9.796e-05,2]
[346579822,1735111840672,-500.0,9.796e-05,2]
[346579823,1735111840682,-500.0,9.796e-05,2]
[346579824,1735111840691,-500.0,9.796e-05,2]
[346579825,1735111840701,-500.0,9.796e-05,2]
[346579826,1735111840710,-500.0,9.796e-05,2]
[346579827,1735111840720,-500.0,9.796e-05,2]
[346579828,1735111840729,-500.0,9.796e-05,2]
[346579829,1735111840739,-500.0,9.796e-05,2]
[346579830,1735111840748,-500.0,9.796e-05,2]
[346579831,1735111840758,-500.0,9.796e-05,2]
[346579832,1735111840768,-500.0,9.796e-05,2]
[346579833,1735111840777,-510.11353443,9.796e-05,2]
[346579834,1735111840787,-500.0,9.796e-05,2]
[346579835,1735111840796,-500.0,9.796e-05,2]
[346579836,1735111840807,-500.0,9.796e-05,2]
[346579837,1735111840817,-500.0,9.796e-05,2]
[346579838,1735111840826,-571.17,9.796e-05,2]
[346579840,1735111840836,-500.0,9.796e-05,2]
[346579841,1735111840845,-500.0,9.796e-05,2]
[346579842,1735111840856,-520.69,9.796e-05,2]
[346579844,1735111840869,-500.0,9.796e-05,2]
[346579846,1735111840879,-500.0,9.796e-05,2]
[346579848,1735111840889,-500.73,9.796e-05,2]
[346579850,1735111840898,-500.0,9.796e-05,2]
[346579852,1735111840907,-710.17,9.796e-05,2]
[346579854,1735111840917,-506.16872799,9.796e-05,2]
[346579856,1735111840926,-502.09452735,9.796e-05,2]
[346579857,1735111840935,-500.0,9.796e-05,2]
[346579858,1735111840945,-500.0,9.796e-05,2]
[346579859,1735111840955,-500.0,9.796e-05,2]
[346579860,1735111840964,-500.0,9.796e-05,2]
[346579861,1735111840974,-555.53413903,9.796e-05,2]
[346579862,1735111840989,-70.05669578,9.796e-05,2]
[346579863,1735111840998,-198.22385825,9.796e-05,2]
[346579864,1735111841357,-301.77614175,9.796e-05,2]
[346579865,1735111841366,-172.40583705,9.796e-05,2]
[346579866,1735111841691,-327.59416295,9.796e-05,2]
[346579867,1735111841701,-372.45583705,9.796e-05,2]
[346579868,1735111841713,-127.54416295,9.796e-05,2]
[346579869,1735111841723,-504.27809537,9.796e-05,2]
[346579870,1735111841732,-350.45765588,9.796e-05,2]
[346579893,1735111843659,-1966.36,9.794e-05,2]
[346579894,1735111843669,-501.58,9.794e-05,2]
[346579895,1735111843679,-149.54234412,9.796e-05,2]
[346579896,1735111843688,-636.61,9.796e-05,2]
[346579897,1735111843698,-724.72,9.796e-05,2]
[346579898,1735111843707,-500.0,9.796e-05,2]
[346579899,1735111843716,-500.0,9.796e-05,2]
[346579900,1735111843725,-500.0,9.796e-05,2]
[346579901,1735111843734,-500.0,9.796e-05,2]
[346579902,1735111843744,-509.71,9.796e-05,2]
[346579903,1735111843753,-526.36,9.796e-05,2]
[346579904,1735111843762,-500.0,9.796e-05,2]
[346579905,1735111843772,-840.02,9.796e-05,2]
[346579906,1735111843781,-504.18823325,9.796e-05,2]
[346579907,1735111843790,-633.0089402,9.796e-05,2]
[346579908,1735111843799,-556.47695101,9.796e-05,2]
[346579909,1735111843808,-504.97754781,9.796e-05,2]
[346579910,1735111843817,-500.0,9.796e-05,2]
[346579911,1735111843826,-500.0,9.796e-05,2]
[346579912,1735111843835,-500.0,9.796e-05,2]
[346579913,1735111843844,-262.51433246,9.796e-05,2]
[346579914,1735111843853,-562.27704692,9.796e-05,2]
[346579915,1735111843862,-500.0,9.796e-05,2]
[346579916,1735111843871,-616.9,9.796e-05,2]
[346579917,1735111843881,-500.0,9.796e-05,2]
[346579918,1735111843890,-500.0,9.796e-05,2]
[346579919,1735111843899,-500.0,9.796e-05,2]
[346579920,1735111843909,-500.0,9.796e-05,2]
[346579921,1735111843918,-660.83,9.796e-05,2]
[346579922,1735111843927,-500.0,9.796e-05,2]
[346579923,1735111843937,-500.0,9.796e-05,2]
[346579924,1735111843946,-716.01,9.796e-05,2]
[346579925,1735111843956,-500.0,9.796e-05,2]
[346579926,1735111843965,-484.93695107,9.796e-05,2]
[346579927,1735111843974,-263.94802246,9.796e-05,2]
[346579928,1735111843984,-795.52,9.796e-05,2]
[346579929,1735111843993,-500.0,9.796e-05,2]
[346579930,1735111844002,-705.36,9.796e-05,2]
[346579931,1735111844012,-500.0,9.796e-05,2]
[346579932,1735111844021,-500.0,9.796e-05,2]
[346579933,1735111844030,-1057.51,9.796e-05,2]
[346579934,1735111844039,-1586.85,9.796e-05,2]
[346579935,1735111844049,-1446.24,9.796e-05,2]
[346579936,1735111844057,-500.0,9.796e-05,2]
[346579937,1735111844066,-500.0,9.796e-05,2]
[346579938,1735111844075,-500.0,9.796e-05,2]
[346579939,1735111844085,-500.0,9.796e-05,2]
[346579940,1735111844094,-502.85773279,9.796e-05,2]
[346579941,1735111844103,-500.0,9.796e-05,2]
[346579942,1735111844114,-1613.41,9.796e-05,2]